[Event "Titled Tuesday Blitz August 3 2021"]
[White "Goncalves, Ivan Mesquita V"]
[Black "Diaz Perez, Michel Alejandro"]
[WhiteFideId "2114224"]
[BlackFideId "3517179"]
[WhiteElo "2299"]
[BlackElo "2337"]
[Result "0-1"]
[Round "04"]
[TimeControl "180+1"]
[Date "2021.08.03"]
[WhiteClock "0:00:06"]
[BlackClock "0:00:03"]

1. d4 {[%clk 0:03:00]}  Nf6 {[%clk 0:02:57]} 2. Nf3 {[%clk 0:03:01]}  e6 {[%clk 0:02:57]} 3. Bf4 {[%clk 0:03:02]}  c5 {[%clk 0:02:51]} 4. e3 {[%clk 0:03:02]}  b6 {[%clk 0:02:51]} 5. Nbd2 {[%clk 0:03:01]}  Be7 {[%clk 0:02:51]} 6. h3 {[%clk 0:03:01]}  O-O {[%clk 0:02:49]} 7. a4 {[%clk 0:03:01]}  cxd4 {[%clk 0:02:48]} 8. exd4 {[%clk 0:03:00]}  Ba6 {[%clk 0:02:39]} 9. Bxa6 {[%clk 0:02:59]}  Nxa6 {[%clk 0:02:40]} 10. O-O {[%clk 0:02:59]}  d5 {[%clk 0:02:39]} 11. Ne5 {[%clk 0:02:56]}  Rc8 {[%clk 0:02:38]} 12. c3 {[%clk 0:02:57]}  Nb8 {[%clk 0:02:33]} 13. Qe2 {[%clk 0:02:56]}  Nc6 {[%clk 0:02:30]} 14. Nxc6 {[%clk 0:02:52]}  Rxc6 {[%clk 0:02:30]} 15. a5 {[%clk 0:02:53]}  bxa5 {[%clk 0:02:11]} 16. Nb3 {[%clk 0:02:40]}  Qb6 {[%clk 0:02:09]} 17. Nxa5 {[%clk 0:02:39]}  Rcc8 {[%clk 0:02:09]} 18. Rfc1 {[%clk 0:02:21]}  h6 {[%clk 0:01:58]} 19. b4 {[%clk 0:02:15]}  Ne4 {[%clk 0:01:46]} 20. Bd2 {[%clk 0:02:14]}  Bh4 {[%clk 0:01:22]} 21. Be1 {[%clk 0:02:13]}  Bg5 {[%clk 0:01:21]} 22. Rc2 {[%clk 0:02:04]}  Rc7 {[%clk 0:01:19]} 23. Nb3 {[%clk 0:02:01]}  Bf6 {[%clk 0:01:06]} 24. Nc5 {[%clk 0:01:57]}  Re8 {[%clk 0:01:05]} 25. Ra6 {[%clk 0:01:55]}  Qb8 {[%clk 0:01:05]} 26. f3 {[%clk 0:01:48]}  Nxc5 {[%clk 0:01:04]} 27. bxc5 {[%clk 0:01:47]}  e5 {[%clk 0:00:59]} 28. Bg3 {[%clk 0:00:55]}  exd4 {[%clk 0:00:55]} 29. Qd1 {[%clk 0:00:54]}  d3 {[%clk 0:00:46]} 30. Qxd3 {[%clk 0:00:47]}  Qb1+ {[%clk 0:00:45]} 31. Kh2 {[%clk 0:00:47]}  Rxc5 {[%clk 0:00:41]} 32. Rxa7 {[%clk 0:00:38]}  d4 {[%clk 0:00:40]} 33. Ra4 {[%clk 0:00:20]}  Qb3 {[%clk 0:00:26]} 34. Rb4 {[%clk 0:00:19]}  Qa3 {[%clk 0:00:27]} 35. Bd6 {[%clk 0:00:12]}  Rxc3 {[%clk 0:00:27]} 36. Rxc3 {[%clk 0:00:10]}  Qxc3 {[%clk 0:00:26]} 37. Qxc3 {[%clk 0:00:10]}  dxc3 {[%clk 0:00:27]} 38. Rc4 {[%clk 0:00:11]}  Rd8 {[%clk 0:00:17]} 39. Bb4 {[%clk 0:00:11]}  Rd3 {[%clk 0:00:17]} 40. Kg1 {[%clk 0:00:11]}  g6 {[%clk 0:00:16]} 41. Kf1 {[%clk 0:00:10]}  h5 {[%clk 0:00:15]} 42. Ke2 {[%clk 0:00:08]}  Rd2+ {[%clk 0:00:14]} 43. Ke3 {[%clk 0:00:08]}  Rxg2 {[%clk 0:00:14]} 44. Bxc3 {[%clk 0:00:08]}  Bxc3 {[%clk 0:00:13]} 45. Rxc3 {[%clk 0:00:09]}  Rg3 {[%clk 0:00:14]} 46. Kf4 {[%clk 0:00:09]}  Rxh3 {[%clk 0:00:13]} 47. Rc7 {[%clk 0:00:08]}  Kg7 {[%clk 0:00:13]} 48. Ra7 {[%clk 0:00:08]}  Rh1 {[%clk 0:00:13]} 49. Kg3 {[%clk 0:00:08]}  Rb1 {[%clk 0:00:13]} 50. Rc7 {[%clk 0:00:09]}  Rb6 {[%clk 0:00:12]} 51. Ra7 {[%clk 0:00:09]}  Kf6 {[%clk 0:00:13]} 52. Rc7 {[%clk 0:00:09]}  g5 {[%clk 0:00:11]} 53. Ra7 {[%clk 0:00:09]}  Kg6 {[%clk 0:00:12]} 54. Rc7 {[%clk 0:00:09]}  h4+ {[%clk 0:00:11]} 55. Kh3 {[%clk 0:00:09]}  Rb3 {[%clk 0:00:11]} 56. Kg2 {[%clk 0:00:09]}  f6 {[%clk 0:00:10]} 57. Rc6 {[%clk 0:00:09]}  Rb5 {[%clk 0:00:08]} 58. Rc8 {[%clk 0:00:10]}  Re5 {[%clk 0:00:08]} 59. Rd8 {[%clk 0:00:10]}  Kf5 {[%clk 0:00:09]} 60. Rc8 {[%clk 0:00:10]}  Rd5 {[%clk 0:00:09]} 61. Rb8 {[%clk 0:00:10]}  Rd4 {[%clk 0:00:09]} 62. Rc8 {[%clk 0:00:10]}  Kf4 {[%clk 0:00:09]} 63. Rc3 {[%clk 0:00:09]}  f5 {[%clk 0:00:08]} 64. Kh3 {[%clk 0:00:09]}  Rd1 {[%clk 0:00:06]} 65. Ra3 {[%clk 0:00:09]}  Rf1 {[%clk 0:00:05]} 66. Kg2 {[%clk 0:00:09]}  Rd1 {[%clk 0:00:05]} 67. Ra4+ {[%clk 0:00:09]}  Ke5 {[%clk 0:00:04]} 68. Ra5+ {[%clk 0:00:10]}  Rd5 {[%clk 0:00:05]} 69. Ra8 {[%clk 0:00:10]}  Rd4 {[%clk 0:00:05]} 70. Kh3 {[%clk 0:00:08]}  Kf4 {[%clk 0:00:04]} 71. Ra3 {[%clk 0:00:08]}  Rd1 {[%clk 0:00:02]} 72. Ra4+ {[%clk 0:00:09]}  Kxf3 {[%clk 0:00:02]} 73. Ra3+ {[%clk 0:00:09]}  Ke2 {[%clk 0:00:02]} 74. Ra5 {[%clk 0:00:09]}  Rd3+ {[%clk 0:00:03]} 75. Kg2 {[%clk 0:00:09]}  f4 {[%clk 0:00:02]} 76. Rxg5 {[%clk 0:00:08]}  f3+ {[%clk 0:00:02]} 77. Kh2 {[%clk 0:00:08]}  f2 {[%clk 0:00:03]} 78. Re5+ {[%clk 0:00:08]}  Re3 {[%clk 0:00:04]} 79. Rb5 {[%clk 0:00:08]}  f1=Q {[%clk 0:00:03]} 80. Rb2+ {[%clk 0:00:09]}  Kf3 {[%clk 0:00:04]} 81. Rf2+ {[%clk 0:00:06]}  Qxf2+ {[%clk 0:00:03]} 0-1


[Site "https://www.chess.com"]

[Event "Titled Tuesday Blitz August 3 2021"]
[White "GrafLermontov"]
[Black "Aitbayev, Aslan"]
[BlackFideId "13704613"]
[WhiteElo "2519"]
[BlackElo "2734"]
[Result "0-1"]
[Round "04"]
[TimeControl "180+1"]
[Date "2021.08.03"]
[WhiteClock "0:00:02"]
[BlackClock "0:00:31"]

1. e4 {[%clk 0:03:00]}  e6 {[%clk 0:02:59]} 2. d3 {[%clk 0:03:00]}  d5 {[%clk 0:03:00]} 3. Nd2 {[%clk 0:03:01]}  c5 {[%clk 0:03:00]} 4. Ngf3 {[%clk 0:03:02]}  Nc6 {[%clk 0:03:01]} 5. g3 {[%clk 0:03:02]}  Nf6 {[%clk 0:03:02]} 6. Bg2 {[%clk 0:03:03]}  g6 {[%clk 0:03:02]} 7. O-O {[%clk 0:03:03]}  Bg7 {[%clk 0:03:03]} 8. Re1 {[%clk 0:02:55]}  O-O {[%clk 0:03:03]} 9. Qe2 {[%clk 0:02:55]}  b6 {[%clk 0:02:51]} 10. Nf1 {[%clk 0:02:49]}  h6 {[%clk 0:02:24]} 11. h4 {[%clk 0:02:44]}  e5 {[%clk 0:02:15]} 12. exd5 {[%clk 0:02:31]}  Nxd5 {[%clk 0:02:16]} 13. Ne3 {[%clk 0:02:20]}  Nxe3 {[%clk 0:01:48]} 14. Bxe3 {[%clk 0:02:21]}  Bb7 {[%clk 0:01:47]} 15. Bd2 {[%clk 0:02:03]}  Qc7 {[%clk 0:01:39]} 16. Bc3 {[%clk 0:01:51]}  Rae8 {[%clk 0:01:38]} 17. Nd2 {[%clk 0:01:47]}  Kh7 {[%clk 0:01:25]} 18. a4 {[%clk 0:01:38]}  Qd7 {[%clk 0:01:09]} 19. Kh2 {[%clk 0:01:30]}  Nd4 {[%clk 0:01:04]} 20. Bxd4 {[%clk 0:01:27]}  exd4 {[%clk 0:01:04]} 21. Qf1 {[%clk 0:01:19]}  Rxe1 {[%clk 0:00:58]} 22. Rxe1 {[%clk 0:00:31]}  Bxg2 {[%clk 0:00:53]} 23. Qxg2 {[%clk 0:00:32]}  Qxa4 {[%clk 0:00:52]} 24. Nb3 {[%clk 0:00:17]}  Qa2 {[%clk 0:00:43]} 25. h5 {[%clk 0:00:11]}  Qxb2 {[%clk 0:00:39]} 26. Re2 {[%clk 0:00:05]}  c4 {[%clk 0:00:35]} 27. dxc4 {[%clk 0:00:05]}  d3 {[%clk 0:00:34]} 28. hxg6+ {[%clk 0:00:06]}  fxg6 {[%clk 0:00:33]} 29. Rd2 {[%clk 0:00:02]}  dxc2 {[%clk 0:00:31]} 0-1


[Site "https://www.chess.com"]

[Event "Titled Tuesday Blitz August 3 2021"]
[White "Grochal, Joey"]
[Black "Papasimakopoulos, Alexandros"]
[WhiteFideId "1019945"]
[BlackFideId "4244125"]
[WhiteElo "2265"]
[BlackElo "2352"]
[Result "0-1"]
[Round "04"]
[TimeControl "180+1"]
[Date "2021.08.03"]
[WhiteClock "0:01:17"]
[BlackClock "0:01:31"]

1. d4 {[%clk 0:03:00]}  e6 {[%clk 0:02:59]} 2. c4 {[%clk 0:02:56]}  Nf6 {[%clk 0:02:58]} 3. Nf3 {[%clk 0:02:56]}  Bb4+ {[%clk 0:02:55]} 4. Nbd2 {[%clk 0:02:55]}  b6 {[%clk 0:02:55]} 5. a3 {[%clk 0:02:54]}  Bxd2+ {[%clk 0:02:55]} 6. Qxd2 {[%clk 0:02:55]}  Bb7 {[%clk 0:02:54]} 7. b3 {[%clk 0:02:55]}  O-O {[%clk 0:02:53]} 8. Bb2 {[%clk 0:02:55]}  d6 {[%clk 0:02:53]} 9. g3 {[%clk 0:02:55]}  Nbd7 {[%clk 0:02:52]} 10. Bg2 {[%clk 0:02:55]}  Be4 {[%clk 0:02:52]} 11. O-O {[%clk 0:02:52]}  Qe7 {[%clk 0:02:52]} 12. Ne1 {[%clk 0:02:50]}  Bxg2 {[%clk 0:02:52]} 13. Nxg2 {[%clk 0:02:51]}  Ne4 {[%clk 0:02:47]} 14. Qc2 {[%clk 0:02:49]}  f5 {[%clk 0:02:47]} 15. f3 {[%clk 0:02:48]}  Nef6 {[%clk 0:02:45]} 16. e4 {[%clk 0:02:49]}  fxe4 {[%clk 0:02:45]} 17. fxe4 {[%clk 0:02:49]}  e5 {[%clk 0:02:46]} 18. Ne3 {[%clk 0:02:45]}  exd4 {[%clk 0:02:40]} 19. Nd5 {[%clk 0:02:38]}  Nxd5 {[%clk 0:02:24]} 20. cxd5 {[%clk 0:02:35]}  Nc5 {[%clk 0:02:23]} 21. Bxd4 {[%clk 0:02:30]}  Qxe4 {[%clk 0:02:18]} 22. Qxe4 {[%clk 0:02:26]}  Nxe4 {[%clk 0:02:19]} 23. Rfe1 {[%clk 0:02:26]}  Nd2 {[%clk 0:02:18]} 24. Red1 {[%clk 0:02:04]}  Nxb3 {[%clk 0:02:17]} 25. Rab1 {[%clk 0:02:04]}  Nc5 {[%clk 0:02:07]} 26. Re1 {[%clk 0:01:52]}  Rae8 {[%clk 0:02:07]} 27. Kg2 {[%clk 0:01:52]}  Nd3 {[%clk 0:02:02]} 28. Rxe8 {[%clk 0:01:49]}  Rxe8 {[%clk 0:02:03]} 29. Rb3 {[%clk 0:01:47]}  Nc5 {[%clk 0:01:49]} 30. Rf3 {[%clk 0:01:37]}  Re2+ {[%clk 0:01:47]} 31. Kh3 {[%clk 0:01:37]}  Re4 {[%clk 0:01:45]} 32. Bb2 {[%clk 0:01:34]}  b5 {[%clk 0:01:41]} 33. Rf5 {[%clk 0:01:33]}  a5 {[%clk 0:01:36]} 34. Rf1 {[%clk 0:01:23]}  Re2 {[%clk 0:01:31]} 35. Bd4 {[%clk 0:01:23]}  Rd2 {[%clk 0:01:30]} 36. Bxc5 {[%clk 0:01:18]}  dxc5 {[%clk 0:01:30]} 37. Rb1 {[%clk 0:01:17]}  b4 {[%clk 0:01:30]} 38. axb4 {[%clk 0:01:17]}  axb4 {[%clk 0:01:31]} 0-1


[Site "https://www.chess.com"]

[Event "Titled Tuesday Blitz August 3 2021"]
[White "Gupta, Abhijeet"]
[Black "Ismagilov, Damir"]
[WhiteFideId "5010608"]
[BlackFideId "34199982"]
[WhiteElo "2549"]
[BlackElo "2075"]
[Result "1-0"]
[Round "04"]
[TimeControl "180+1"]
[Date "2021.08.03"]
[WhiteClock "0:00:18"]
[BlackClock "0:00:04"]

1. Nf3 {[%clk 0:03:00]}  Nf6 {[%clk 0:02:54]} 2. c4 {[%clk 0:02:59]}  c5 {[%clk 0:02:52]} 3. Nc3 {[%clk 0:02:58]}  e6 {[%clk 0:02:50]} 4. g3 {[%clk 0:02:56]}  b6 {[%clk 0:02:49]} 5. Bg2 {[%clk 0:02:55]}  Bb7 {[%clk 0:02:50]} 6. O-O {[%clk 0:02:55]}  Be7 {[%clk 0:02:49]} 7. d4 {[%clk 0:02:56]}  cxd4 {[%clk 0:02:48]} 8. Qxd4 {[%clk 0:02:56]}  d6 {[%clk 0:02:41]} 9. b3 {[%clk 0:02:54]}  Nbd7 {[%clk 0:02:38]} 10. Bb2 {[%clk 0:02:54]}  a6 {[%clk 0:02:38]} 11. Rfd1 {[%clk 0:02:53]}  O-O {[%clk 0:02:37]} 12. Rac1 {[%clk 0:02:53]}  Qc7 {[%clk 0:02:37]} 13. Nh4 {[%clk 0:02:48]}  Bxg2 {[%clk 0:02:35]} 14. Nxg2 {[%clk 0:02:49]}  Qb7 {[%clk 0:02:30]} 15. Ne3 {[%clk 0:02:46]}  Rac8 {[%clk 0:02:26]} 16. Ng4 {[%clk 0:02:29]}  Nxg4 {[%clk 0:02:10]} 17. Qxg4 {[%clk 0:02:29]}  Nf6 {[%clk 0:02:10]} 18. Qf3 {[%clk 0:02:21]}  Qxf3 {[%clk 0:02:03]} 19. exf3 {[%clk 0:02:22]}  Rc6 {[%clk 0:01:58]} 20. Rd3 {[%clk 0:02:15]}  Rfc8 {[%clk 0:01:56]} 21. Rcd1 {[%clk 0:02:14]}  Kf8 {[%clk 0:01:41]} 22. a4 {[%clk 0:02:14]}  Nd7 {[%clk 0:01:32]} 23. Ne2 {[%clk 0:01:52]}  Nc5 {[%clk 0:01:15]} 24. Re3 {[%clk 0:01:52]}  Bf6 {[%clk 0:01:09]} 25. Bxf6 {[%clk 0:01:47]}  gxf6 {[%clk 0:01:10]} 26. f4 {[%clk 0:01:47]}  f5 {[%clk 0:01:03]} 27. Kg2 {[%clk 0:01:43]}  Rb8 {[%clk 0:00:52]} 28. h3 {[%clk 0:01:38]}  h5 {[%clk 0:00:51]} 29. Nd4 {[%clk 0:01:34]}  Rc7 {[%clk 0:00:48]} 30. h4 {[%clk 0:01:01]}  Kg7 {[%clk 0:00:47]} 31. Kf3 {[%clk 0:01:01]}  Kf6 {[%clk 0:00:46]} 32. Ke2 {[%clk 0:01:00]}  Ne4 {[%clk 0:00:41]} 33. Ra1 {[%clk 0:00:49]}  e5 {[%clk 0:00:26]} 34. fxe5+ {[%clk 0:00:46]}  dxe5 {[%clk 0:00:26]} 35. Nc2 {[%clk 0:00:40]}  Rd8 {[%clk 0:00:26]} 36. Nb4 {[%clk 0:00:33]}  Rd2+ {[%clk 0:00:25]} 37. Ke1 {[%clk 0:00:34]}  Rcd7 {[%clk 0:00:19]} 38. Nd5+ {[%clk 0:00:34]}  Kg7 {[%clk 0:00:18]} 39. Nxb6 {[%clk 0:00:19]}  Rd8 {[%clk 0:00:15]} 40. Nd5 {[%clk 0:00:16]}  Rxf2 {[%clk 0:00:15]} 41. Rxe4 {[%clk 0:00:12]}  Rh2 {[%clk 0:00:16]} 42. Rxe5 {[%clk 0:00:12]}  Rh1+ {[%clk 0:00:16]} 43. Kd2 {[%clk 0:00:13]}  Rxa1 {[%clk 0:00:17]} 44. Rxf5 {[%clk 0:00:13]}  Ra2+ {[%clk 0:00:16]} 45. Kc3 {[%clk 0:00:13]}  Rg2 {[%clk 0:00:16]} 46. Rf3 {[%clk 0:00:14]}  Rd6 {[%clk 0:00:15]} 47. Nf4 {[%clk 0:00:14]}  Kh6 {[%clk 0:00:15]} 48. Nxg2 {[%clk 0:00:14]}  Re6 {[%clk 0:00:11]} 49. Ne3 {[%clk 0:00:14]}  Kg6 {[%clk 0:00:10]} 50. Nd5 {[%clk 0:00:14]}  Re4 {[%clk 0:00:10]} 51. a5 {[%clk 0:00:15]}  Rg4 {[%clk 0:00:09]} 52. b4 {[%clk 0:00:15]}  Re4 {[%clk 0:00:09]} 53. Kb3 {[%clk 0:00:15]}  Re1 {[%clk 0:00:09]} 54. b5 {[%clk 0:00:15]}  axb5 {[%clk 0:00:07]} 55. cxb5 {[%clk 0:00:16]}  Rb1+ {[%clk 0:00:08]} 56. Kc4 {[%clk 0:00:16]}  Rc1+ {[%clk 0:00:08]} 57. Kb4 {[%clk 0:00:17]}  Rb1+ {[%clk 0:00:08]} 58. Kc5 {[%clk 0:00:17]}  Rf1 {[%clk 0:00:08]} 59. b6 {[%clk 0:00:17]}  Rxf3 {[%clk 0:00:09]} 60. b7 {[%clk 0:00:17]}  Rb3 {[%clk 0:00:05]} 61. Nb6 {[%clk 0:00:17]}  Rxb6 {[%clk 0:00:03]} 62. axb6 {[%clk 0:00:17]}  f5 {[%clk 0:00:03]} 63. b8=Q {[%clk 0:00:18]}  f4 {[%clk 0:00:04]} 64. Qxf4 {[%clk 0:00:18]} 1-0


[Site "https://www.chess.com"]

[Event "Titled Tuesday Blitz August 3 2021"]
[White "He, Anthony"]
[Black "Tristan, Leonardo"]
[WhiteFideId "2088215"]
[BlackFideId "113816"]
[WhiteElo "2353"]
[BlackElo "2404"]
[Result "1-0"]
[Round "04"]
[TimeControl "180+1"]
[Date "2021.08.03"]
[WhiteClock "0:00:02"]
[BlackClock "0:00:02"]

1. e4 {[%clk 0:03:00]}  c5 {[%clk 0:02:56]} 2. Ne2 {[%clk 0:02:58]}  Nc6 {[%clk 0:02:56]} 3. g3 {[%clk 0:02:58]}  d5 {[%clk 0:02:51]} 4. Bg2 {[%clk 0:02:57]}  d4 {[%clk 0:02:45]} 5. d3 {[%clk 0:02:56]}  e5 {[%clk 0:02:45]} 6. Nd2 {[%clk 0:02:51]}  Nf6 {[%clk 0:02:44]} 7. O-O {[%clk 0:02:50]}  Be7 {[%clk 0:02:43]} 8. h3 {[%clk 0:02:49]}  g5 {[%clk 0:02:36]} 9. Nc4 {[%clk 0:02:42]}  Nd7 {[%clk 0:02:36]} 10. a4 {[%clk 0:02:40]}  h5 {[%clk 0:02:27]} 11. f4 {[%clk 0:02:22]}  gxf4 {[%clk 0:02:13]} 12. gxf4 {[%clk 0:02:18]}  Qc7 {[%clk 0:02:13]} 13. c3 {[%clk 0:02:09]}  h4 {[%clk 0:02:02]} 14. b4 {[%clk 0:01:59]}  cxb4 {[%clk 0:01:52]} 15. cxd4 {[%clk 0:01:56]}  exd4 {[%clk 0:01:53]} 16. Bb2 {[%clk 0:01:39]}  Rg8 {[%clk 0:01:46]} 17. Kh1 {[%clk 0:01:32]}  Bc5 {[%clk 0:01:38]} 18. e5 {[%clk 0:01:31]}  Nb6 {[%clk 0:01:33]} 19. Nd2 {[%clk 0:01:24]}  Be6 {[%clk 0:01:24]} 20. Ne4 {[%clk 0:01:24]}  Be7 {[%clk 0:01:21]} 21. Nxd4 {[%clk 0:01:20]}  Nxd4 {[%clk 0:01:21]} 22. Bxd4 {[%clk 0:01:20]}  Rd8 {[%clk 0:01:20]} 23. Bg1 {[%clk 0:01:13]}  Qd7 {[%clk 0:01:16]} 24. a5 {[%clk 0:01:06]}  Nd5 {[%clk 0:01:05]} 25. Rc1 {[%clk 0:01:05]}  Bxh3 {[%clk 0:00:58]} 26. Rc2 {[%clk 0:00:46]}  b3 {[%clk 0:00:55]} 27. Bxh3 {[%clk 0:00:46]}  Qxh3+ {[%clk 0:00:50]} 28. Rh2 {[%clk 0:00:46]}  Qg4 {[%clk 0:00:34]} 29. Qxb3 {[%clk 0:00:40]}  h3 {[%clk 0:00:34]} 30. Bxa7 {[%clk 0:00:28]}  Nxf4 {[%clk 0:00:30]} 31. Qd1 {[%clk 0:00:10]}  Qg2+ {[%clk 0:00:15]} 32. Rxg2 {[%clk 0:00:10]}  hxg2+ {[%clk 0:00:16]} 33. Kh2 {[%clk 0:00:10]}  Rxd3 {[%clk 0:00:17]} 34. Qxd3 {[%clk 0:00:06]}  Nxd3 {[%clk 0:00:14]} 35. Rb1 {[%clk 0:00:05]}  Nxe5 {[%clk 0:00:09]} 36. Rxb7 {[%clk 0:00:03]}  Nf3+ {[%clk 0:00:10]} 37. Kh3 {[%clk 0:00:03]}  g1=Q {[%clk 0:00:10]} 38. Bxg1 {[%clk 0:00:03]}  Nxg1+ {[%clk 0:00:10]} 39. Kh2 {[%clk 0:00:03]}  Nf3+ {[%clk 0:00:10]} 40. Kh3 {[%clk 0:00:04]}  f5 {[%clk 0:00:06]} 41. Rb8+ {[%clk 0:00:03]}  Kf7 {[%clk 0:00:06]} 42. Rxg8 {[%clk 0:00:03]}  Kxg8 {[%clk 0:00:02]} 43. a6 {[%clk 0:00:04]}  fxe4 {[%clk 0:00:01]} 44. a7 {[%clk 0:00:04]}  Kf7 {[%clk 0:00:02]} 45. a8=Q {[%clk 0:00:05]}  Ng5+ {[%clk 0:00:03]} 46. Kg4 {[%clk 0:00:05]}  Ne6 {[%clk 0:00:03]} 47. Qxe4 {[%clk 0:00:05]}  Ng5 {[%clk 0:00:02]} 48. Qd5+ {[%clk 0:00:05]}  Ke8 {[%clk 0:00:02]} 49. Kf5 {[%clk 0:00:05]}  Nf7 {[%clk 0:00:02]} 50. Qc6+ {[%clk 0:00:05]}  Kf8 {[%clk 0:00:02]} 51. Qd5 {[%clk 0:00:02]}  Ke8 {[%clk 0:00:02]} 52. Kg6 {[%clk 0:00:02]}  Nd6 {[%clk 0:00:02]} 53. Qe6 {[%clk 0:00:02]}  Kd8 {[%clk 0:00:02]} 54. Qg8+ {[%clk 0:00:02]}  Kc7 {[%clk 0:00:02]} 55. Qd5 {[%clk 0:00:03]}  Kd7 {[%clk 0:00:03]} 56. Qa5 {[%clk 0:00:03]}  Ke8 {[%clk 0:00:02]} 57. Kh5 {[%clk 0:00:03]}  Kd7 {[%clk 0:00:02]} 58. Kg4 {[%clk 0:00:03]}  Nf7 {[%clk 0:00:03]} 59. Qb5+ {[%clk 0:00:02]}  Kd8 {[%clk 0:00:03]} 60. Qb8+ {[%clk 0:00:03]}  Kd7 {[%clk 0:00:03]} 61. Qa7+ {[%clk 0:00:04]}  Ke8 {[%clk 0:00:03]} 62. Kf5 {[%clk 0:00:05]}  Nd8 {[%clk 0:00:02]} 63. Kg6 {[%clk 0:00:04]}  Kf8 {[%clk 0:00:03]} 64. Qd7 {[%clk 0:00:04]}  Nf7 {[%clk 0:00:01]} 65. Qe6 {[%clk 0:00:03]}  Nd8 {[%clk 0:00:01]} 66. Qd5 {[%clk 0:00:03]}  Ke8 {[%clk 0:00:01]} 67. Kg7 {[%clk 0:00:03]}  Bf8+ {[%clk 0:00:01]} 68. Kg8 {[%clk 0:00:02]}  Be7 {[%clk 0:00:02]} 69. Qb5+ {[%clk 0:00:02]} 1-0


[Site "https://www.chess.com"]

[Event "Titled Tuesday Blitz August 3 2021"]
[White "Hryshchenko, Kamila"]
[Black "Puchka, Vladislav"]
[WhiteFideId "14147491"]
[BlackFideId "14134276"]
[WhiteElo "1966"]
[BlackElo "1924"]
[Result "1/2-1/2"]
[Round "04"]
[TimeControl "180+1"]
[Date "2021.08.03"]
[WhiteClock "0:01:24"]
[BlackClock "0:00:40"]

1. g3 {[%clk 0:02:58]}  d5 {[%clk 0:02:56]} 2. Bg2 {[%clk 0:02:58]}  c6 {[%clk 0:02:56]} 3. Nf3 {[%clk 0:02:42]}  Nf6 {[%clk 0:02:56]} 4. d3 {[%clk 0:02:34]}  g6 {[%clk 0:02:56]} 5. c3 {[%clk 0:02:34]}  Bg7 {[%clk 0:02:56]} 6. O-O {[%clk 0:02:34]}  O-O {[%clk 0:02:56]} 7. Nbd2 {[%clk 0:02:35]}  Bg4 {[%clk 0:02:54]} 8. e4 {[%clk 0:02:35]}  Bxf3 {[%clk 0:02:50]} 9. Bxf3 {[%clk 0:02:33]}  dxe4 {[%clk 0:02:49]} 10. dxe4 {[%clk 0:02:34]}  e5 {[%clk 0:02:49]} 11. Bg2 {[%clk 0:02:34]}  Nbd7 {[%clk 0:02:48]} 12. Kh1 {[%clk 0:02:34]}  Nc5 {[%clk 0:02:47]} 13. Qc2 {[%clk 0:02:32]}  Nd3 {[%clk 0:02:36]} 14. h3 {[%clk 0:02:27]}  Bh6 {[%clk 0:02:27]} 15. Nb3 {[%clk 0:02:21]}  Nxc1 {[%clk 0:01:49]} 16. Nxc1 {[%clk 0:02:22]}  Qe7 {[%clk 0:01:41]} 17. Ne2 {[%clk 0:02:19]}  Rad8 {[%clk 0:01:41]} 18. Rad1 {[%clk 0:02:18]}  Rxd1 {[%clk 0:01:39]} 19. Rxd1 {[%clk 0:02:19]}  Rd8 {[%clk 0:01:40]} 20. Rd3 {[%clk 0:02:18]}  Rxd3 {[%clk 0:01:38]} 21. Qxd3 {[%clk 0:02:19]}  Qd7 {[%clk 0:01:38]} 22. Qxd7 {[%clk 0:02:15]}  Nxd7 {[%clk 0:01:39]} 23. f4 {[%clk 0:02:14]}  Bg7 {[%clk 0:01:29]} 24. f5 {[%clk 0:02:12]}  Kf8 {[%clk 0:01:23]} 25. g4 {[%clk 0:02:11]}  Ke8 {[%clk 0:01:20]} 26. g5 {[%clk 0:02:10]}  f6 {[%clk 0:01:20]} 27. h4 {[%clk 0:02:10]}  Kf7 {[%clk 0:01:16]} 28. Bh3 {[%clk 0:02:08]}  Nc5 {[%clk 0:01:14]} 29. Ng3 {[%clk 0:02:04]}  Nd3 {[%clk 0:01:08]} 30. Bf1 {[%clk 0:02:03]}  Nxb2 {[%clk 0:01:06]} 31. Be2 {[%clk 0:02:02]}  Na4 {[%clk 0:01:03]} 32. Bc4+ {[%clk 0:01:46]}  Kf8 {[%clk 0:01:02]} 33. Ne2 {[%clk 0:01:30]}  Nc5 {[%clk 0:01:02]} 34. Ng3 {[%clk 0:01:29]}  Na4 {[%clk 0:00:48]} 35. Ne2 {[%clk 0:01:28]}  Nc5 {[%clk 0:00:40]} 36. Ng3 {[%clk 0:01:24]}  Na4 {[%clk 0:00:40]} 1/2-1/2


[Site "https://www.chess.com"]